fUSD/lending_fUSD_20240119
["ID","MTS","AMOUNT","RATE_DAILY","PERIOD"]
[312186918,1705683059731,-500.0,0.00022191,2]
[312186919,1705683059741,-509.20752249,0.00022191,2]
[312186920,1705683059751,-634.46,0.00022191,2]
[312186921,1705683059761,-500.0,0.00022191,2]
[312186922,1705683059773,-2418.37,0.00022191,2]
[312186923,1705683059785,-500.0,0.00022191,2]
[312186924,1705683059795,-500.0,0.00022191,2]
[312186925,1705683059805,-645.81,0.00022191,2]
[312186926,1705683059815,-500.0,0.00022191,2]
[312186927,1705683059826,-500.0,0.00022191,2]
[312186928,1705683059836,-1354.15,0.00022191,2]
[312186929,1705683059845,-500.0,0.00022191,2]
[312186930,1705683059855,-732.88,0.00022191,2]
[312186931,1705683059865,-500.0,0.00022191,2]
[312186932,1705683059875,-500.0,0.00022191,2]
[312186933,1705683059885,-8044.27,0.00022191,2]
[312186934,1705683059895,-500.0,0.00022191,2]
[312186935,1705683059906,-500.0,0.00022191,2]
[312186936,1705683060241,-500.0,0.00022191,2]
[312186937,1705683060258,-500.0,0.00022191,2]
[312186938,1705683060268,-500.0,0.00022191,2]
[312186939,1705683060281,-1071.92,0.00022191,2]
[312186940,1705683060290,-1131.8,0.00022191,2]
[312186941,1705683060300,-500.0,0.00022191,2]
[312186942,1705683060310,-500.0,0.00022191,2]
[312186943,1705683060319,-615.35,0.00022191,2]
[312186944,1705683060329,-500.0,0.00022191,2]
[312186945,1705683060338,-1266.02,0.00022191,2]
[312186946,1705683060348,-185.88757087,0.00022191,2]
[312186947,1705683060357,-500.0,0.00022191,2]
[312186948,1705683060367,-500.0,0.00022191,2]
[312186949,1705683060376,-1899.77,0.00022191,2]
[312186950,1705683060385,-500.0,0.00022191,2]
[312186951,1705683060395,-500.0,0.00022191,2]
[312186952,1705683060404,-2241.89,0.00022191,2]
[312186953,1705683060413,-500.0,0.00022191,2]
[312186954,1705683060422,-500.0,0.00022191,2]
[312186955,1705683060432,-1121.36,0.00022191,2]
[312186956,1705683060441,-500.0,0.00022191,2]
[312186957,1705683060450,-500.0,0.00022191,2]
[312186958,1705683060459,-500.0,0.00022191,2]
[312186959,1705683060469,-500.0,0.00022191,2]
[312186960,1705683060478,-500.0,0.00022191,2]
[312186961,1705683060488,-828.85,0.00022191,2]
[312186962,1705683060497,-500.0,0.00022191,2]
[312186963,1705683060507,-2489.76,0.00022191,2]
[312186964,1705683060516,-500.0,0.00022191,2]
[312186965,1705683060527,-500.0,0.00022191,2]
[312186966,1705683060537,-288.14474407,0.00022191,2]
[312186967,1705683060549,-500.0,0.00022191,2]
[312186968,1705683060558,-500.0,0.00022191,2]
[312186969,1705683060568,-500.0,0.00022191,2]
[312186970,1705683060577,-862.17,0.00022191,2]
[312186971,1705683060587,-500.0,0.00022191,2]
[312186972,1705683060596,-500.0,0.00022191,2]
[312186973,1705683060606,-4391.27,0.00022191,2]
[312186974,1705683060620,-500.0,0.00022191,2]
[312186975,1705683060630,-913.21,0.00022191,2]
[312186976,1705683060639,-868.63,0.00022191,2]
[312186977,1705683060649,-500.0,0.00022191,2]
[312186978,1705683060661,-500.0,0.00022191,2]
[312186979,1705683060670,-500.0,0.00022191,2]
[312186980,1705683060680,-500.0,0.00022191,2]
[312186981,1705683060690,-3237.58,0.00022191,2]
[312186982,1705683060702,-500.0,0.00022191,2]
[312186983,1705683060711,-500.0,0.00022191,2]
[312186984,1705683060721,-546.18,0.00022191,2]
[312186985,1705683060730,-500.0,0.00022191,2]
[312186986,1705683060740,-500.0,0.00022191,2]
[312186987,1705683060749,-500.0,0.00022191,2]
[312186988,1705683060759,-1145.26,0.00022191,2]
[312186989,1705683060769,-500.0,0.00022191,2]
[312186990,1705683060780,-500.0,0.00022191,2]
[312186991,1705683060790,-500.0,0.00022191,2]
[312186992,1705683060799,-1146.85,0.00022191,2]
[312186993,1705683060808,-500.0,0.00022191,2]
[312186994,1705683060818,-506.68455869,0.00022191,2]
[312186995,1705683060827,-500.0,0.00022191,2]
[312186996,1705683060836,-500.0,0.00022191,2]
[312186997,1705683060845,-500.0,0.00022191,2]
[312186998,1705683060855,-500.0,0.00022191,2]
[312186999,1705683060864,-500.0,0.00022191,2]
[312187000,1705683060873,-500.0,0.00022191,2]
[312187001,1705683060883,-500.0,0.00022191,2]
[312187002,1705683060892,-12838.31,0.00022191,2]
[312187003,1705683060901,-1028.89,0.00022191,2]
[312187004,1705683060912,-1419.61,0.00022191,2]
[312187005,1705683060922,-2503.12,0.00022191,2]
[312187006,1705683060931,-500.0,0.00022191,2]
[312187007,1705683060940,-500.0,0.00022191,2]
[312187008,1705683060950,-500.0,0.00022191,2]
[312187009,1705683060959,-1462.96,0.00022191,2]
[312187010,1705683060973,-500.0,0.00022191,2]
[312187011,1705683060983,-747.07,0.00022191,2]
[312187012,1705683060992,-1261.54,0.00022191,2]
[312187013,1705683061007,-500.0,0.00022191,2]
[312187014,1705683061021,-500.0,0.00022191,2]
[312187015,1705683061030,-687.33,0.00022191,2]
[312187016,1705683061040,-500.0,0.00022191,2]
[312187017,1705683061049,-500.0,0.00022191,2]
[312187018,1705683061059,-649.65,0.00022191,2]
[312187019,1705683061068,-508.9802071,0.00022191,2]
[312187020,1705683061078,-500.0,0.00022191,2]
[312187021,1705683061088,-500.0,0.00022191,2]
[312187022,1705683061097,-500.0,0.00022191,2]
[312187023,1705683061107,-500.0,0.00022191,2]
[312187024,1705683061118,-660.63,0.00022191,2]
[312187025,1705683061127,-500.0,0.00022191,2]
[312187026,1705683061137,-1226.99,0.00022191,2]
[312187027,1705683061146,-685.52,0.00022191,2]
[312187028,1705683061156,-1453.36,0.00022191,2]
[312187029,1705683061165,-574.9,0.00022191,2]
[312187030,1705683061175,-500.0,0.00022191,2]
[312187031,1705683061185,-500.0,0.00022191,2]
[312187032,1705683061194,-1528.63,0.00022191,2]
[312187033,1705683061204,-500.0,0.00022191,2]
[312187034,1705683061214,-500.0,0.00022191,2]
[312187035,1705683061223,-758.36,0.00022191,2]
[312187036,1705683061232,-500.0,0.00022191,2]
[312187037,1705683061242,-964.96,0.00022191,2]
[312187038,1705683061252,-548.49723056,0.00022191,2]
[312187039,1705683061262,-584.77,0.00022191,2]
[312187040,1705683061274,-500.0,0.00022191,2]
[312187041,1705683061283,-500.0,0.00022191,2]
[312187042,1705683061293,-500.0,0.00022191,2]
[312187043,1705683061303,-500.0,0.00022191,2]
[312187044,1705683061313,-500.0,0.00022191,2]
[312187045,1705683061322,-500.0,0.00022191,2]
[312187046,1705683061332,-500.0,0.00022191,2]
[312187047,1705683061342,-500.0,0.00022191,2]
[312187048,1705683061352,-500.0,0.00022191,2]
[312187049,1705683061362,-500.0,0.00022191,2]
[312187050,1705683061372,-578.10073578,0.00022191,2]
[312187051,1705683061381,-500.0,0.00022191,2]
[312187052,1705683061391,-1985.31,0.00022191,2]
[312187053,1705683061401,-2102.59,0.00022191,2]
[312187054,1705683061411,-500.0,0.00022191,2]
[312187055,1705683061420,-500.0,0.00022191,2]
[312187056,1705683061430,-500.0,0.00022191,5]
[312187057,1705683061439,-500.0,0.00022191,2]
[312187058,1705683061449,-500.0,0.00022191,2]
[312187059,1705683061459,-865.61,0.00022191,2]
[312187060,1705683061469,-500.0,0.00022191,2]
[312187061,1705683061479,-500.0,0.00022191,2]
[312187062,1705683061489,-705.47,0.00022191,2]
[312187063,1705683061498,-667.44,0.00022191,2]
[312187064,1705683061507,-500.0,0.00022191,2]
[312187065,1705683061516,-500.0,0.00022191,2]
[312187066,1705683061528,-500.0,0.00022191,2]
[312187067,1705683061539,-234.23908884,0.00022191,2]
[312187068,1705683061548,-500.0,0.00022191,2]
[312187069,1705683061557,-500.0,0.00022191,2]
[312187070,1705683061567,-500.0,0.00022191,2]
[312187071,1705683061577,-500.0,0.00022191,2]
[312187072,1705683061586,-500.0,0.00022191,2]
[312187073,1705683061595,-258.17779624,0.00022206,2]
[312187074,1705683061606,-226.25,0.00022214,2]
[312187075,1705683061616,-150.0,0.00022217,2]
[312187076,1705683061627,-150.0,0.00022231,2]
[312187077,1705683061637,-150.0,0.00022235,2]
[312187078,1705683061647,-160.67,0.00022248,2]
[312187079,1705683061656,-176.33,0.00022296,2]
[312187080,1705683061666,-226.25,0.00022342,2]
[312187081,1705683061675,-258.17779624,0.00022365,2]
[312187082,1705683061685,-150.0,0.00022424,2]
[312187083,1705683061695,-800.0,0.00022438,2]
[312187084,1705683061705,-3424.48,0.00022445,2]
[312187085,1705683061715,-150.0,0.0002245,2]
[312187086,1705683061724,-150.0,0.00022462,2]
[312187087,1705683061733,-688.28459736,0.00022463,2]
[312187088,1705683061742,-151.0,0.00022464,7]
[312187089,1705683061752,-151.0,0.00022464,7]
[312187090,1705683061761,-151.0,0.00022464,7]
[312187091,1705683061773,-5165.831101,0.00022464,7]
[312187092,1705683061784,-5165.831101,0.00022464,7]
[312187093,1705683061793,-323.177933,0.00022464,7]
[312187094,1705683061802,-323.177933,0.00022464,7]
[312187095,1705683061812,-418.21791161,0.00022464,2]
[312187096,1705683061821,-1388.89,0.00022464,2]
[312187097,1705683061830,-1388.89,0.00022464,2]
[312187098,1705683061840,-500.0,0.00022464,2]
[312187099,1705683061849,-500.0,0.00022464,2]
[312187100,1705683061859,-558.61,0.00022464,2]
[312187101,1705683061869,-558.61,0.00022464,2]
[312187102,1705683061878,-293888.55222937,0.00022464,2]
[312187103,1705683061887,-2824.49,0.00022464,2]
[312187104,1705683061897,-2439.07,0.00022464,2]
[312187105,1705683061906,-4843.52,0.00022464,2]
[312187106,1705683061916,-500.0,0.00022464,2]
[312187107,1705683061925,-1433.16,0.00022464,2]
[312187108,1705683061934,-1681.58,0.00022464,2]
[312187109,1705683061944,-2258.27,0.00022464,2]
[312187110,1705683061955,-854.1,0.00022464,2]
[312187111,1705683061967,-1945.08,0.00022464,2]
[312187112,1705683061978,-898.06,0.00022464,2]
[312187113,1705683061988,-339.65,0.00022464,2]
[312187114,1705683061999,-1120.44,0.00022464,2]
[312187115,1705683062009,-698.76,0.00022464,2]
[312187116,1705683062022,-623.01,0.00022464,2]
[312187117,1705683062033,-1701.36,0.00022464,2]
[312187118,1705683062043,-915.97,0.00022464,2]
[312187119,1705683062053,-151.0,0.00022464,7]
[312187120,1705683062064,-9237.526097,0.00022464,7]
[312187121,1705683062073,-9237.526097,0.00022464,7]
[312187122,1705683062082,-246.922817,0.00022464,7]
[312187123,1705683062091,-246.922817,0.00022464,7]
[312187124,1705683062101,-5202.549118,0.00022464,7]
[312187125,1705683062110,-5202.549118,0.00022464,7]
[312187126,1705683062120,-932.459178,0.00022464,7]
[312187127,1705683062130,-932.459178,0.00022464,7]
[312187128,1705683062139,-151.0,0.00022464,7]
[312187129,1705683062148,-196.231334,0.00022464,7]
[312187130,1705683062157,-196.231334,0.00022464,7]
[312187131,1705683062167,-182.808643,0.00022464,7]
[312187132,1705683062176,-151.0,0.00022464,7]
[312187133,1705683062185,-162.911219,0.00022464,7]
[312187134,1705683062195,-151.0,0.00022464,7]
[312187135,1705683062204,-151.0,0.00022464,7]
[312187136,1705683062213,-805.288867,0.00022464,7]
[312187137,1705683062222,-805.288867,0.00022464,7]
[312187138,1705683062231,-151.0,0.00022464,7]
[312187139,1705683062241,-1311.043602,0.00022464,7]
[312187140,1705683062250,-1311.043602,0.00022464,7]
[312187141,1705683062260,-152.055814,0.00022464,7]
[312187142,1705683062271,-152.055814,0.00022464,7]
[312187143,1705683062282,-153.189807,0.00022464,7]
[312187144,1705683062292,-153.189807,0.00022464,7]
[312187145,1705683062302,-151.0,0.00022464,7]
[312187146,1705683062312,-151.0,0.00022464,7]
[312187147,1705683062322,-151.0,0.00022464,7]
[312187148,1705683062332,-222.129827,0.00022464,7]
[312187149,1705683062342,-222.129827,0.00022464,7]
[312187150,1705683062352,-151.0,0.00022465,7]
[312187151,1705683062361,-9237.526097,0.00022465,7]
[312187152,1705683062371,-9237.526097,0.00022465,7]
[312187153,1705683062381,-246.922817,0.00022465,7]
[312187154,1705683062390,-246.922817,0.00022465,7]
[312187155,1705683062400,-5202.549118,0.00022465,7]
[312187156,1705683062410,-5202.549118,0.00022465,7]
[312187157,1705683062420,-932.459178,0.00022465,7]
[312187158,1705683062429,-932.459178,0.00022465,7]
[312187159,1705683062439,-264.098224,0.00022465,7]
[312187160,1705683062448,-196.231334,0.00022465,7]
[312187161,1705683062458,-196.231334,0.00022465,7]
[312187162,1705683062468,-153.189807,0.00022465,7]
[312187163,1705683062477,-153.189807,0.00022465,7]
[312187164,1705683062488,-151.0,0.00022465,7]
[312187165,1705683062497,-151.0,0.00022465,7]
[312187166,1705683062507,-222.129827,0.00022465,7]
[312187167,1705683062517,-222.129827,0.00022465,7]
[312187168,1705683062532,-151.0,0.00022465,7]
[312187169,1705683062542,-225.439266,0.00022465,7]
[312187170,1705683062552,-151.0,0.00022465,7]
[312187171,1705683062651,-178.195215,0.00022465,7]
[312187172,1705683062663,-5165.831101,0.00022465,7]
[312187173,1705683062674,-5165.831101,0.00022465,7]
[312187174,1705683062685,-5165.831101,0.00022465,7]
[312187175,1705683062695,-5165.831101,0.00022465,7]
[312187176,1705683062704,-323.177933,0.00022465,7]
[312187177,1705683062714,-323.177933,0.00022465,7]
[312187178,1705683062724,-323.177933,0.00022465,7]
[312187179,1705683062733,-323.177933,0.00022465,7]
[312187180,1705683062742,-714.45,0.00022465,2]
[312187181,1705683062752,-500.0,0.00022465,2]
[312187182,1705683062762,-500.0,0.00022465,2]
[312187183,1705683062776,-500.0,0.00022465,2]
[312187184,1705683062786,-649.92,0.00022465,2]
[312187185,1705683062795,-500.0,0.00022465,2]
[312187186,1705683062805,-500.0,0.00022465,2]
[312187187,1705683062815,-630.95,0.00022465,2]
[312187188,1705683062825,-500.0,0.00022465,2]
[312187189,1705683062835,-633.91,0.00022465,2]
[312187190,1705683062844,-601.26394006,0.00022465,2]
[312187191,1705683062854,-500.0,0.00022465,2]
[312187192,1705683062863,-500.0,0.00022465,2]
[312187193,1705683062873,-500.0,0.00022465,2]
[312187194,1705683062883,-500.0,0.00022465,2]
[312187195,1705683062892,-500.0,0.00022465,2]
[312187196,1705683062902,-561.8,0.00022465,2]
[312187197,1705683062911,-500.0,0.00022465,2]
[312187198,1705683062921,-500.0,0.00022465,2]
[312187199,1705683062930,-500.0,0.00022465,2]
[312187200,1705683062939,-562.92,0.00022465,2]
[312187201,1705683062948,-500.0,0.00022465,2]
[312187202,1705683062957,-447.39,0.00022465,2]
[312187203,1705683062966,-567.84,0.00022465,2]
[312187204,1705683062976,-500.0,0.00022465,2]
[312187205,1705683062985,-500.0,0.00022465,2]
[312187206,1705683062996,-500.0,0.00022465,2]
[312187207,1705683063006,-500.0,0.00022465,2]
[312187208,1705683063016,-500.0,0.00022465,2]
[312187209,1705683063028,-364.44,0.00022465,2]
[312187210,1705683063038,-350.78,0.00022465,2]
[312187211,1705683063047,-500.0,0.00022465,2]
[312187212,1705683063056,-366.95,0.00022465,2]
[312187213,1705683063066,-500.0,0.00022465,2]
[312187214,1705683063075,-507.16,0.00022465,2]
[312187215,1705683063084,-500.0,0.00022465,2]
[312187216,1705683063094,-500.0,0.00022465,2]
[312187217,1705683063103,-500.0,0.00022465,2]
[312187218,1705683063113,-188.50353629,0.00022465,2]
[312187219,1705683063123,-526.59,0.00022465,2]
[312187220,1705683063133,-500.0,0.00022465,2]
[312187221,1705683063142,-500.0,0.00022465,2]
[312187222,1705683063151,-500.0,0.00022465,2]
[312187223,1705683063161,-500.0,0.00022465,2]
[312187224,1705683063170,-500.0,0.00022465,2]
[312187225,1705683063180,-500.0,0.00022465,2]
[312187226,1705683063189,-500.0,0.00022465,2]
[312187227,1705683063198,-500.0,0.00022465,2]
[312187228,1705683063208,-500.0,0.00022465,2]
[312187229,1705683063217,-500.0,0.00022465,2]
[312187230,1705683063226,-500.0,0.00022465,2]
[312187231,1705683063235,-500.0,0.00022465,2]
[312187232,1705683063245,-500.0,0.00022465,2]
[312187233,1705683063254,-500.0,0.00022465,2]
[312187234,1705683063263,-500.0,0.00022465,2]
[312187235,1705683063277,-540.65259309,0.00022465,2]
[312187236,1705683063287,-500.0,0.00022465,2]
[312187237,1705683063297,-500.0,0.00022465,2]
[312187238,1705683063306,-500.0,0.00022465,2]
[312187239,1705683063315,-500.0,0.00022465,2]
[312187240,1705683063325,-500.0,0.00022465,2]
[312187241,1705683063335,-629.5,0.00022465,2]
[312187242,1705683063344,-500.0,0.00022465,2]
[312187243,1705683063353,-500.0,0.00022465,2]
[312187244,1705683063362,-500.0,0.00022465,2]
[312187245,1705683063371,-500.0,0.00022465,2]
[312187246,1705683063381,-500.0,0.00022465,2]
[312187247,1705683063391,-500.0,0.00022465,2]
[312187248,1705683063400,-500.0,0.00022465,2]
[312187249,1705683063410,-500.0,0.00022465,2]
[312187250,1705683063420,-640.23,0.00022465,2]
[312187251,1705683063430,-500.0,0.00022465,2]
[312187252,1705683063440,-500.0,0.00022465,2]
[312187253,1705683063450,-500.0,0.00022465,2]
[312187254,1705683063459,-500.0,0.00022465,2]
[312187255,1705683063470,-500.0,0.00022465,2]
[312187256,1705683063480,-500.0,0.00022465,2]
[312187257,1705683063490,-622.95,0.00022465,2]
[312187258,1705683063499,-500.0,0.00022465,2]
[312187259,1705683063509,-500.0,0.00022465,2]
[312187260,1705683063519,-500.0,0.00022465,2]
[312187261,1705683063531,-500.0,0.00022465,2]
[312187262,1705683063541,-376.57,0.00022465,2]
[312187263,1705683063550,-671.3,0.00022465,2]
[312187264,1705683063559,-610.96,0.00022465,2]
[312187265,1705683063568,-500.0,0.00022465,2]
[312187266,1705683063578,-500.0,0.00022465,2]
[312187267,1705683063587,-500.0,0.00022465,2]
[312187268,1705683063596,-500.0,0.00022465,2]
[312187269,1705683063605,-500.0,0.00022465,2]
[312187270,1705683063617,-548.49,0.00022465,2]
[312187271,1705683063628,-578.69,0.00022465,2]
[312187272,1705683063637,-681.24,0.00022465,2]
[312187273,1705683063647,-500.0,0.00022465,2]
[312187274,1705683063658,-518.28,0.00022465,2]
[312187275,1705683063667,-500.0,0.00022465,2]
[312187276,1705683063678,-360.93,0.00022465,2]
[312187277,1705683063687,-500.0,0.00022465,2]
[312187278,1705683063697,-500.0,0.00022465,2]
[312187279,1705683063706,-500.0,0.00022465,2]
[312187280,1705683063718,-587.01,0.00022465,2]
[312187281,1705683063728,-500.0,0.00022465,2]
[312187282,1705683063737,-500.0,0.00022465,2]
[312187283,1705683063747,-500.0,0.00022465,2]
[312187284,1705683063757,-522.00464643,0.00022465,2]
[312187285,1705683063766,-776.62,0.00022465,2]
[312187286,1705683063778,-500.0,0.00022465,2]
[312187287,1705683063787,-500.0,0.00022465,2]
[312187288,1705683063797,-500.0,0.00022465,2]
[312187289,1705683063805,-505.4191288,0.00022465,2]
[312187290,1705683063814,-507.76,0.00022465,2]
[312187291,1705683063823,-500.0,0.00022465,2]
[312187292,1705683063834,-500.0,0.00022465,2]
[312187293,1705683063843,-500.0,0.00022465,2]
[312187294,1705683063853,-500.0,0.00022465,2]
[312187295,1705683063863,-500.0,0.00022465,2]
[312187296,1705683063872,-500.0,0.00022465,2]
[312187297,1705683063881,-500.0,0.00022465,2]
[312187298,1705683063891,-699.79,0.00022465,2]
[312187299,1705683063901,-500.0,0.00022465,2]
[312187300,1705683063911,-500.0,0.00022465,2]
[312187301,1705683063920,-500.0,0.00022465,2]
[312187302,1705683063930,-500.0,0.00022465,2]
[312187303,1705683063940,-500.0,0.00022465,2]
[312187304,1705683063950,-500.0,0.00022465,2]
[312187305,1705683063959,-500.0,0.00022465,2]
[312187306,1705683063969,-1527.21,0.00022465,2]
[312187307,1705683063979,-542.12,0.00022465,2]
[312187308,1705683063991,-500.0,0.00022465,2]
[312187309,1705683064001,-500.0,0.00022465,2]
[312187310,1705683064010,-647.65,0.00022465,2]
[312187311,1705683064019,-500.0,0.00022465,2]
[312187312,1705683064038,-525.24,0.00022465,2]
[312187313,1705683064047,-500.0,0.00022465,2]
[312187314,1705683064056,-559.07,0.00022465,2]
[312187315,1705683064066,-500.0,0.00022465,2]
[312187316,1705683064076,-500.0,0.00022465,2]
[312187317,1705683064086,-1618.58,0.00022465,2]
[312187318,1705683064095,-541.22,0.00022465,2]
[312187319,1705683064105,-500.0,0.00022465,2]
[312187320,1705683064114,-645.55,0.00022465,2]
[312187321,1705683064124,-210.24939253,0.00022465,2]
[312187322,1705683064134,-500.0,0.00022465,2]
[312187323,1705683064143,-500.0,0.00022465,2]
[312187324,1705683064153,-809.64,0.00022465,2]
[312187325,1705683064162,-500.0,0.00022465,2]
[312187326,1705683064172,-500.0,0.00022465,2]
[312187327,1705683064181,-500.0,0.00022465,2]
[312187328,1705683064190,-512.68,0.00022465,2]
[312187329,1705683064199,-500.0,0.00022465,2]
[312187330,1705683064208,-500.0,0.00022465,2]
[312187331,1705683064217,-500.0,0.00022465,2]
[312187332,1705683064227,-500.0,0.00022465,2]
[312187333,1705683064237,-582.84,0.00022465,2]
[312187334,1705683064247,-500.0,0.00022465,2]
[312187335,1705683064257,-629.94,0.00022465,2]
[312187336,1705683064266,-500.0,0.00022465,2]
[312187337,1705683064282,-500.0,0.00022465,2]
[312187338,1705683064291,-500.0,0.00022465,2]
[312187339,1705683064300,-500.0,0.00022465,2]
[312187340,1705683064310,-599.05,0.00022465,2]
[312187341,1705683064319,-500.0,0.00022465,2]
[312187342,1705683064329,-764.03,0.00022465,2]
[312187343,1705683064338,-546.89,0.00022465,2]
[312187344,1705683064348,-413.58031821,0.00022465,2]
[312187345,1705683064358,-500.0,0.00022465,2]
[312187346,1705683064368,-500.0,0.00022465,2]
[312187347,1705683064378,-500.0,0.00022465,2]
[312187348,1705683064387,-500.0,0.00022465,2]
[312187349,1705683064397,-2196.87,0.00022465,2]
[312187350,1705683064407,-500.0,0.00022465,2]
[312187351,1705683064416,-553.1,0.00022465,2]
[312187352,1705683064425,-500.0,0.00022465,2]
[312187353,1705683064435,-500.0,0.00022465,2]
[312187354,1705683064444,-500.0,0.00022465,2]
[312187355,1705683064453,-500.0,0.00022465,2]
[312187356,1705683064463,-500.0,0.00022465,2]
[312187357,1705683064473,-500.0,0.00022465,2]
[312187358,1705683064482,-800.12,0.00022465,2]
[312187359,1705683064491,-500.0,0.00022465,2]
[312187360,1705683064501,-696.84,0.00022465,2]
[312187361,1705683064510,-500.0,0.00022465,2]
[312187362,1705683064520,-500.0,0.00022465,2]
[312187363,1705683064533,-500.0,0.00022465,2]
[312187364,1705683064544,-500.0,0.00022465,2]
[312187365,1705683064553,-759.79,0.00022465,2]
[312187366,1705683064563,-500.0,0.00022465,2]
[312187367,1705683064572,-500.0,0.00022465,2]
[312187368,1705683064582,-525.68,0.00022465,2]
[312187369,1705683064591,-500.0,0.00022465,2]
[312187370,1705683064600,-500.0,0.00022465,2]
[312187371,1705683064610,-756.34,0.00022465,2]
[312187372,1705683064620,-1301.48,0.00022465,2]
[312187373,1705683064630,-500.0,0.00022465,2]
[312187374,1705683064641,-500.0,0.00022465,2]
[312187375,1705683064651,-500.0,0.00022465,2]
[312187376,1705683064660,-500.0,0.00022465,2]
[312187377,1705683064670,-500.0,0.00022465,2]
[312187378,1705683064680,-500.0,0.00022465,2]
[312187379,1705683064689,-500.0,0.00022465,2]
[312187380,1705683064699,-500.0,0.00022465,2]
[312187381,1705683064708,-500.0,0.00022465,2]
[312187382,1705683064718,-504.44,0.00022465,2]
[312187383,1705683064727,-500.0,0.00022465,2]
[312187384,1705683064736,-500.0,0.00022465,2]
[312187385,1705683064745,-500.0,0.00022465,2]
[312187386,1705683064754,-500.0,0.00022465,2]
[312187387,1705683064763,-500.0,0.00022465,2]
[312187388,1705683064775,-500.0,0.00022465,2]
[312187389,1705683064785,-500.0,0.00022465,7]
[312187390,1705683064794,-500.0,0.00022465,2]
[312187391,1705683064805,-500.0,0.00022465,2]
[312187392,1705683064815,-522.23,0.00022465,2]
[312187393,1705683064825,-500.0,0.00022465,2]
[312187394,1705683064835,-500.0,0.00022465,2]
[312187395,1705683064844,-500.0,0.00022465,2]
[312187396,1705683064853,-500.0,0.00022465,2]
[312187397,1705683064866,-500.0,0.00022465,2]
[312187398,1705683064875,-450.98488533,0.00022465,2]
[312187399,1705683064886,-652.64,0.00022465,2]
[312187400,1705683064896,-878.19,0.00022465,2]
[312187401,1705683064906,-863.27,0.00022465,2]
[312187402,1705683064916,-500.0,0.00022465,2]
[312187403,1705683064927,-995.21,0.00022465,2]
[312187404,1705683064937,-501.61,0.00022465,2]
[312187405,1705683064947,-500.0,0.00022465,2]
[312187406,1705683064956,-747.28,0.00022465,2]
[312187407,1705683064966,-500.0,0.00022465,2]
[312187408,1705683064975,-500.0,0.00022465,2]
[312187409,1705683064984,-545.79,0.00022465,2]
[312187410,1705683064993,-500.0,0.00022465,2]
[312187411,1705683065003,-519.98,0.00022465,2]
[312187412,1705683065012,-565.84,0.00022465,2]
[312187413,1705683065026,-500.0,0.00022465,2]
[312187414,1705683065035,-500.0,0.00022465,2]
[312187415,1705683065046,-494.44,0.00022465,2]
[312187416,1705683065056,-821.94,0.00022465,2]
[312187417,1705683065067,-500.0,0.00022465,2]